lending/lending_fUSD_20240809
["ID","MTS","AMOUNT","RATE_DAILY","PERIOD"]
[334562344,1723216246153,-800.19,0.00012,2]
[334562345,1723216246163,-800.19,0.00012,2]
[334562346,1723216246176,-800.19,0.00012,2]
[334562347,1723216246191,-800.19,0.00012,2]
[334562348,1723216246207,-800.19,0.00012211,2]
[334562349,1723216246216,-800.19,0.00012386,2]
[334562350,1723216246226,-296179.10501755,0.0001246,2]
[334562351,1723216246268,-17557.49566037,0.0001246,2]
[334562357,1723216246415,-859.59283247,0.0001246,2]
[334562359,1723216246427,-3030.05542201,0.0001246,2]
[334562361,1723216246443,-1301.37556257,0.0001246,2]
[334562375,1723217059152,205.99,9.309e-05,2]
[334562376,1723217116822,155.21309104,9.309e-05,2]
[334562377,1723217118219,155.07450981,9.309e-05,2]
[334562378,1723217119525,693.09243413,9.309e-05,2]
[334562379,1723217125114,1371.1363752,9.309e-05,2]
[334562380,1723217126403,485.55826466,9.309e-05,2]
[334562381,1723217129974,200.97635559,9.309e-05,2]
[334562382,1723217130132,411.87190944,9.309e-05,2]
[334562383,1723217130695,1309.89969901,9.309e-05,2]
[334562384,1723217133428,4782.68386559,9.309e-05,2]
[334562385,1723217133454,9574.25263856,9.309e-05,2]
[334562386,1723217134950,425.74736144,9.309e-05,2]
[334562387,1723217134971,10000.0,9.309e-05,2]
[334562388,1723217134992,9962.73283499,9.309e-05,2]
[334562389,1723217136643,37.26716501,9.5e-05,2]
[334562390,1723217136663,10000.0,9.5e-05,2]
[334562391,1723217136688,7962.73283499,9.5e-05,2]
[334562392,1723217137079,155.0,9.309e-05,2]
[334562393,1723217138057,1284.86660241,9.309e-05,2]
[334562394,1723217139829,597.4005626,9.309e-05,2]
[334562395,1723217139850,1968.04881793,9.309e-05,2]
[334562396,1723217155890,976.62762751,6.94e-05,2]
[334562397,1723217156474,7055.32355456,9.309e-05,2]
[334562398,1723217156495,522.39741167,9.309e-05,2]
[334562399,1723217164954,9477.60258833,9.309e-05,2]
[334562400,1723217164976,10000.0,9.309e-05,2]
[334562401,1723217164998,910.8776081,9.309e-05,2]
[334562402,1723217166661,425.83516653,9.309e-05,2]
[334562403,1723217168641,872.12298117,9.309e-05,2]
[334562404,1723217169067,227.71036735,9.309e-05,2]
[334562405,1723217169208,7563.45387685,9.309e-05,2]
[334562406,1723217169231,10000.0,9.309e-05,2]
[334562407,1723217169252,10000.0,9.309e-05,2]
[334562408,1723217169278,10000.0,9.309e-05,2]
[334562409,1723217169300,10000.0,9.309e-05,2]
[334562410,1723217169322,10000.0,9.309e-05,2]
[334562411,1723217169344,10000.0,9.309e-05,2]
[334562412,1723217169366,10000.0,9.309e-05,2]
[334562413,1723217169387,10000.0,9.309e-05,2]
[334562414,1723217169410,10000.0,9.309e-05,2]
[334562415,1723217169431,10000.0,9.309e-05,2]
[334562416,1723217169453,10000.0,9.309e-05,2]
[334562417,1723217169478,10000.0,9.309e-05,2]
[334562418,1723217169500,10000.0,9.309e-05,2]
[334562419,1723217169527,10000.0,9.309e-05,2]
[334562420,1723217169549,10000.0,9.309e-05,2]
[334562421,1723217169570,10000.0,9.309e-05,2]
[334562422,1723217169592,10000.0,9.309e-05,2]
[334562423,1723217169613,6099.53117867,9.309e-05,2]
[334562424,1723217169774,155.33500095,9.309e-05,2]
[334562425,1723217171160,155.0,9.309e-05,2]
[334562426,1723217172312,363.96025495,9.309e-05,2]
[334562427,1723217172341,790.9462055,9.309e-05,2]
[334562428,1723217174546,291.55862315,9.309e-05,2]
[334562429,1723217175748,155.0,9.309e-05,2]
[334562430,1723217175846,159.03851619,9.309e-05,2]
[334562431,1723217180177,155.0,9.309e-05,2]
[334562432,1723217180517,760.2567842,9.309e-05,2]
[334562434,1723217180899,914.37343639,9.309e-05,2]
[334562435,1723217180921,354.31953397,9.309e-05,2]
[334562436,1723217184017,1868.2185256,9.309e-05,2]
[334562437,1723217184352,1223.55498284,9.309e-05,2]
[334562438,1723217190279,3070.25593273,9.309e-05,2]
[334562439,1723217199037,1868.2185256,9.309e-05,2]
[334562440,1723217204648,693.09243413,9.309e-05,2]
[334562441,1723217205754,155.0,9.309e-05,2]
[334562442,1723217209128,155.0,9.309e-05,2]
[334562443,1723217211771,612.34006513,9.309e-05,2]
[334562444,1723217211796,697.55963388,9.309e-05,2]
[334562445,1723217214156,411.87190944,9.309e-05,2]
[334562446,1723217220168,3070.25593273,9.309e-05,2]
[334562447,1723217221978,2565.44938053,9.309e-05,2]
[334562448,1723217222723,1309.89969901,9.309e-05,2]
[334562449,1723217223368,485.55826466,9.309e-05,2]
[334562450,1723217228109,1371.1363752,9.309e-05,2]
[334562452,1723217233430,14356.93650415,9.309e-05,2]
[334562453,1723217234118,155.0,9.309e-05,2]
[334562454,1723217234370,485.55826466,9.309e-05,2]
[334562456,1723217245956,20388.48019643,9.309e-05,2]
[334562457,1723217247341,155.0,9.309e-05,2]
[334562458,1723217252226,183662.98505552,9.309e-05,2]
[334562459,1723217253658,872.12298117,9.309e-05,2]
[334562460,1723217254967,1284.86660241,9.309e-05,2]
[334562461,1723217256063,227.71036735,9.309e-05,2]
[334562462,1723217257289,363.96025495,9.309e-05,2]
[334562463,1723217261406,155.0,9.309e-05,2]
[334562464,1723217263485,7577.72096623,9.309e-05,2]
[334562465,1723217265908,291.55862315,9.309e-05,2]
[334562466,1723217267165,425.83516653,9.309e-05,2]
[334562467,1723217270183,155.29233006,9.309e-05,2]
[334562468,1723217270819,790.9462055,9.309e-05,2]
[334562469,1723217276233,301.72431998,9.309e-05,2]
[334562470,1723217278537,760.2567842,9.309e-05,2]
[334562471,1723217282184,172.0765026,5e-05,2]
[334562472,1723217284667,425.83516653,9.309e-05,2]
[334562473,1723217284876,159.03851619,9.309e-05,2]
[334562475,1723217287404,1268.69297036,9.309e-05,2]
[334562476,1723217288392,1223.55498284,9.309e-05,2]
[334562477,1723217299535,693.09243413,9.309e-05,2]
[334562478,1723217300814,790.9462055,9.309e-05,2]
[334562479,1723217304045,973.34185184,9.309e-05,2]
[334562480,1723217321849,2565.44938053,9.309e-05,2]
[334562481,1723217322176,3070.25593273,9.309e-05,2]
[334562482,1723217327166,411.87190944,9.309e-05,2]
[334562483,1723217328635,155.0,9.309e-05,2]
[334562484,1723217329113,1372.59409192,9.309e-05,2]
[334562485,1723217330765,155.0,9.309e-05,2]
[334562486,1723217333387,485.55826466,9.309e-05,2]
[334562487,1723217338721,1309.89969901,9.309e-05,2]
[334562488,1723217341779,155.0,9.309e-05,2]
[334562489,1723217341972,1284.86660241,9.309e-05,2]
[334562490,1723217342445,14356.93650415,9.309e-05,2]
[334562491,1723217343339,155.0,9.309e-05,2]
[334562492,1723217343471,20388.48019643,9.309e-05,2]
[334562493,1723217344626,155.0,9.309e-05,2]
[334562494,1723217344864,693.09243413,9.309e-05,2]
[334562495,1723217347262,183662.98505552,9.309e-05,2]
[334562496,1723217350308,363.96025495,9.309e-05,2]
[334562497,1723217356052,291.55862315,9.309e-05,2]
[334562498,1723217356563,7577.72096623,9.309e-05,2]
[334562499,1723217357175,411.87190944,9.309e-05,2]
[334562500,1723217359679,872.12298117,9.309e-05,2]
[334562501,1723217359907,159.03851619,9.309e-05,2]
[334562502,1723217361889,2565.44938053,9.309e-05,2]
[334562503,1723217363160,155.0,9.309e-05,2]
[334562504,1723217364823,790.9462055,9.309e-05,2]
[334562505,1723217368312,227.69843321,9.309e-05,2]
[334562506,1723217369557,760.2567842,9.309e-05,2]
[334562507,1723217371070,227.71036735,9.309e-05,2]
[334562508,1723217371987,1284.86660241,9.309e-05,2]
[334562509,1723217376160,155.0,9.309e-05,2]
[334562510,1723217379570,155.0,9.309e-05,2]
[334562511,1723217382413,1268.69297036,9.309e-05,2]
[334562512,1723217387355,1223.55498284,9.309e-05,2]
[334562513,1723217389048,973.34185184,9.309e-05,2]
[334562514,1723217402168,425.83516653,9.309e-05,2]
[334562515,1723217402359,1223.55498284,9.309e-05,2]
[334562516,1723217403951,150.0,9.309e-05,2]
[334562517,1723217404150,150.0,9.309e-05,2]
[334562518,1723217404330,150.0,9.309e-05,2]
[334562519,1723217404508,150.0,9.309e-05,2]
[334562520,1723217404706,150.0,9.309e-05,2]
[334562521,1723217404906,150.0,9.309e-05,2]
[334562522,1723217405103,150.0,9.309e-05,2]
[334562523,1723217405287,150.0,9.309e-05,2]
[334562524,1723217405503,150.0,9.309e-05,2]
[334562525,1723217405900,150.0,9.309e-05,2]
[334562526,1723217406099,150.0,9.309e-05,2]
[334562527,1723217406338,150.0,9.309e-05,2]
[334562528,1723217406557,150.0,9.309e-05,2]
[334562529,1723217406777,150.0,9.309e-05,2]
[334562530,1723217407114,150.0,9.309e-05,2]
[334562531,1723217407181,150.0,9.309e-05,2]
[334562532,1723217407364,150.0,9.309e-05,2]
[334562533,1723217407558,150.0,9.309e-05,2]
[334562534,1723217407754,150.0,9.309e-05,2]
[334562535,1723217407960,150.0,9.309e-05,2]
[334562536,1723217408172,150.0,9.309e-05,2]
[334562537,1723217408362,150.0,9.309e-05,2]
[334562538,1723217408558,150.0,9.309e-05,2]
[334562539,1723217408792,150.0,9.309e-05,2]
[334562540,1723217408987,150.0,9.309e-05,2]
[334562541,1723217409205,150.0,9.309e-05,2]
[334562542,1723217409444,150.0,9.309e-05,2]
[334562543,1723217409578,150.0,9.309e-05,2]
[334562544,1723217409880,150.0,9.309e-05,2]
[334562545,1723217410078,150.0,9.309e-05,2]
[334562546,1723217410277,150.0,9.309e-05,2]
[334562547,1723217410453,150.0,9.309e-05,2]
[334562548,1723217410625,150.0,9.309e-05,2]
[334562549,1723217410835,150.0,9.309e-05,2]
[334562550,1723217411038,150.0,9.309e-05,2]
[334562551,1723217411232,150.0,9.309e-05,2]
[334562552,1723217411405,200.9821605,9.309e-05,2]
[334562553,1723217414429,14356.93650415,9.309e-05,2]
[334562554,1723217425703,3070.25593273,9.309e-05,2]
[334562555,1723217430390,485.55826466,9.309e-05,2]
[334562572,1723217431894,-550.0,0.0001,2]
[334562574,1723217431904,-571.42598314,0.0001,2]
[334562576,1723217431914,-150.0,0.0001,2]
[334562578,1723217431923,-640.0,0.00010115,2]
[334562580,1723217431934,-302.790542,0.00010784,2]
[334562582,1723217431944,-300.0,0.00010838,2]
[334562584,1723217431955,-150.0,0.00010838,2]
[334562585,1723217431964,-23900.0,0.00010839,2]
[334562586,1723217431973,-235.24,0.00010839,2]
[334562587,1723217431983,-13932.67390485,0.00010839,2]
[334562588,1723217431992,-6581.21459164,0.00010899,2]
[334562589,1723217432001,-6581.21459164,0.00010899,2]
[334562590,1723217432011,-6581.21459164,0.00010899,2]
[334562591,1723217432020,-6581.21459164,0.00010899,2]
[334562592,1723217432036,-6581.21459164,0.00010899,2]
[334562593,1723217432046,-6581.21459164,0.000109,2]
[334562594,1723217432056,-6581.21459164,0.000109,2]
[334562595,1723217432066,-6581.21459164,0.000109,2]
[334562596,1723217432076,-6581.21459164,0.000109,2]
[334562597,1723217432086,-524.26580789,0.000109,2]
[334562598,1723217432096,-268.24639746,0.000109,2]
[334562599,1723217432105,-6581.21459164,0.000109,2]
[334562600,1723217432122,-1549.6284928,0.000109,2]
[334562601,1723217432131,-587.14,0.00010959,2]
[334562602,1723217432141,-150.0,0.00010959,2]
[334562603,1723217432151,-87523.80089384,0.0001099,2]
[334562604,1723217432160,-3361.93524863,0.00010998,2]
[334562605,1723217432170,-100728.77182745,0.00010999,2]
[334562606,1723217432179,-48719.85243195,0.00010999,2]
[334562607,1723217432188,-148034.81708945,0.00011,2]
[334562608,1723217432198,-148994.10422119,0.00011,2]
[334562609,1723217432210,-220676.20491817,0.00011,2]
[334562611,1723217432222,-1085.42033485,0.00011,2]
[334562614,1723217432234,-2109.43741355,0.00011,2]
[334562616,1723217432246,-943.09082566,0.00011,2]
[334562619,1723217432257,-604.81421,0.00011,2]
[334562621,1723217432269,-7823.73689433,0.00011,2]
[334562623,1723217432280,-1910.04659137,0.00011,2]
[334562626,1723217432301,-658.25,0.00011,2]
[334562628,1723217432312,-528.93426626,0.00011,2]
[334562631,1723217432327,-301.2900896,0.00011,2]
[334562633,1723217432339,-4228.0863352,0.00011,2]
[334562635,1723217432351,-517.85511205,0.00011,2]
[334562637,1723217432362,-820.87408869,0.00011,2]
[334562640,1723217432373,-460.43123519,0.00011,2]
[334562642,1723217432384,-71101.47243274,0.00011,2]
[334562644,1723217432395,-10283.09270712,0.00011,2]
[334562647,1723217433055,693.09243413,9.309e-05,2]
[334562648,1723217433331,262.18128558,9.309e-05,2]
[334562650,1723217438042,-258.05518553,0.00010999,2]
[334562651,1723217438062,-23.49481447,0.00011,2]
[334562652,1723217438107,-6336.6802766,0.00011,2]
[334562653,1723217438119,-355.55693075,0.00011,2]
[334562654,1723217438131,-1863.47043422,0.00011,2]
[334562655,1723217438142,-15716.19168783,0.00011,2]
[334562656,1723217438154,-646.16318433,0.00011,2]
[334562657,1723217438166,-1893.4,0.00011,2]
[334562658,1723217438177,-824.89675,0.00011,2]
[334562659,1723217438189,-438.848,0.00011,2]
[334562660,1723217438200,-18716.99087636,0.00011,2]
[334562661,1723217438320,363.96025495,9.309e-05,2]
[334562662,1723217438361,-6343.80348218,0.00011,2]
[334562663,1723217438373,-2003.39981655,0.00011,2]
[334562664,1723217438384,-609.04084905,0.00011,2]
[334562665,1723217438395,-2084.0327375,0.00011,2]
[334562666,1723217438407,-2158.98320904,0.00011,2]
[334562667,1723217438425,-3253.18471337,0.00011,2]
[334562668,1723217438436,-1251.34130064,0.00011,2]
[334562669,1723217438448,-729.82228752,0.00011,2]
[334562670,1723217438460,-289.4002629,0.00011,2]
[334562671,1723217438471,-971.94899424,0.00011,2]
[334562672,1723217438483,-2183.16426548,0.00011,2]
[334562673,1723217438495,-107569.25045688,0.00011,2]
[334562678,1723217440077,-502.36071293,0.00011,2]
[334562679,1723217440088,-2749.99999999,0.00011,2]
[334562680,1723217440099,-939.63137312,0.00011,2]
[334562681,1723217440110,-2141.25728077,0.00011,2]
[334562682,1723217440122,-215224.42494854,0.00011,2]
[334562683,1723217440133,-186420.41431062,0.00011,2]
[334562704,1723217441322,-662.70634916,0.00011,2]
[334562705,1723217441345,-847.02556474,0.00011,2]
[334562706,1723217441357,-505.53116172,0.00011,2]
[334562707,1723217441369,-3474.04327968,0.00011,2]
[334562708,1723217441381,-3094.16293897,0.00011,2]
[334562709,1723217441392,-16876.40537994,0.00011,2]
[334562710,1723217441403,-2954.1894928,0.00011,2]
[334562711,1723217441414,-7200.85525383,0.00011,2]
[334562712,1723217441426,-2476.92546041,0.00011,2]
[334562713,1723217441439,-2721.8017398,0.00011,2]
[334562714,1723217441450,-902.16144431,0.00011,2]
[334562715,1723217442302,-630.25841339,0.00011,2]
[334562716,1723217442318,-454.1964936,0.00011,2]
[334562717,1723217442329,-4800.87529398,0.00011,2]
[334562718,1723217442341,-441.48538942,0.00011,2]
[334562719,1723217442434,1309.89969901,9.309e-05,2]
[334562720,1723217442469,2565.44938053,9.309e-05,2]
[334562731,1723217443063,-475.67259041,0.00011,2]
[334562732,1723217443248,-484.58396518,0.00011,2]
[334562733,1723217443259,-8264.97603201,0.00011,2]
[334562734,1723217443270,-397.31356527,0.00011,2]
[334562735,1723217443318,-4092.43173572,0.00011,2]
[334562736,1723217443329,-1942.04386883,0.00011,2]
[334562738,1723217444481,20388.48019643,9.309e-05,2]
[334562757,1723217446102,-2073.29355406,0.00011,2]
[334562758,1723217446114,-400.61843616,0.00011,2]
[334562759,1723217446166,-263.2774465,0.00011,2]
[334562760,1723217446178,-5174.0,0.00011,2]
[334562761,1723217446225,-1094.0838,0.00011,2]
[334562762,1723217447291,-16.28303047,0.00011,2]
[334562763,1723217447640,155.0,9.309e-05,2]
[334562764,1723217448401,159.03851619,9.309e-05,2]
[334562765,1723217449835,790.9462055,9.309e-05,2]
[334562766,1723217450765,155.0,9.309e-05,2]
[334562767,1723217451715,872.12298117,9.309e-05,2]
[334562768,1723217457533,760.2567842,9.309e-05,2]
[334562769,1723217459462,20388.48019643,9.309e-05,2]
[334562770,1723217461227,183662.98505552,9.309e-05,2]
[334562771,1723217465076,7577.72096623,9.309e-05,2]
[334562772,1723217465595,1268.69297036,9.309e-05,2]
[334562773,1723217469895,291.55862315,9.309e-05,2]
[334562774,1723217479074,1284.86660241,9.309e-05,2]
[334562775,1723217481082,227.71036735,9.309e-05,2]
[334562776,1723217484573,155.0,9.309e-05,2]
[334562777,1723217487053,973.34185184,9.309e-05,2]
[334562778,1723217488192,411.87190944,9.309e-05,2]
[334562779,1723217498184,411.87190944,9.309e-05,2]
[334562780,1723217503351,155.0,9.309e-05,2]
[334562781,1723217503393,425.83516653,9.309e-05,2]
[334562782,1723217503433,3435.67926394,9.309e-05,2]
[334562783,1723217507908,485.31987623,9.309e-05,2]
[334562784,1723217518428,3435.67926394,9.309e-05,2]
[334562785,1723217520319,363.96025495,9.309e-05,2]
[334562787,1723217524362,1223.55498284,9.309e-05,2]
[334562788,1723217524649,155.0,9.309e-05,2]
[334562789,1723217533190,155.0,9.309e-05,2]
[334562790,1723217534719,1307.769318,9.309e-05,2]
[334562791,1723217536837,790.9462055,9.309e-05,2]
[334562792,1723217536899,159.03851619,9.309e-05,2]
[334562793,1723217537687,872.12298117,9.309e-05,2]
[334562794,1723217538048,693.09243413,9.309e-05,2]
[334562795,1723217539354,1223.55498284,9.309e-05,2]
[334562796,1723217542433,205.06,8.678e-05,2]
[334562797,1723217544695,1826.80569276,9.309e-05,2]
[334562798,1723217546358,2565.44938053,9.309e-05,2]
[334562799,1723217546765,196.32821329,9.309e-05,2]
[334562800,1723217552689,872.12298117,9.309e-05,2]
[334562801,1723217554541,760.2567842,9.309e-05,2]
[334562802,1723217563433,1268.69297036,9.309e-05,2]
[334562803,1723217564595,155.0,9.309e-05,2]
[334562804,1723217570907,291.55862315,9.309e-05,2]
[334562805,1723217576229,183662.98505552,9.309e-05,2]
[334562806,1723217577085,7577.72096623,9.309e-05,2]
[334562807,1723217578415,1268.69297036,9.309e-05,2]
[334562808,1723217580066,1284.86660241,9.309e-05,2]
[334562809,1723217580973,20388.48019643,9.309e-05,2]
[334562810,1723217586079,227.71036735,9.309e-05,2]
[334562811,1723217599166,411.87190944,9.309e-05,2]
[334562812,1723217604204,425.83516653,9.309e-05,2]
[334562813,1723217606241,183662.98505552,9.309e-05,2]
[334562814,1723217607062,973.34185184,9.309e-05,2]
[334562815,1723217615346,214.06602681,9.309e-05,2]
[334562816,1723217616084,227.71036735,9.309e-05,2]
[334562817,1723217633644,156.15847484,9.309e-05,2]
[334562818,1723217637057,790.9462055,9.309e-05,2]
[334562819,1723217637362,2565.44938053,9.309e-05,2]
[334562820,1723217637536,760.2567842,9.309e-05,2]
[334562821,1723217640045,693.09243413,9.309e-05,2]
[334562822,1723217643905,159.03851619,9.309e-05,2]
[334562823,1723217648201,155.0,9.309e-05,2]
[334562824,1723217659694,872.12298117,9.309e-05,2]
[334562825,1723217662359,1223.55498284,9.309e-05,2]
[334562826,1723217663906,202.85572098,9.309e-05,2]
[334562827,1723217668076,7577.72096623,9.309e-05,2]
[334562828,1723217670039,20388.48019643,9.309e-05,2]
[334562829,1723217670119,1284.86660241,9.309e-05,2]
[334562830,1723217676657,155.0,9.309e-05,2]
[334562831,1723217691600,155.0,9.309e-05,2]
[334562832,1723217692411,1223.55498284,9.309e-05,2]
[334562833,1723217697206,425.83516653,9.309e-05,2]
[334562834,1723217699580,973.34185184,9.309e-05,2]
[334562835,1723217704211,411.87190944,9.309e-05,2]
[334562836,1723217711431,1268.69297036,9.309e-05,2]
[334562838,1723217723270,183662.98505552,9.309e-05,2]
[334562839,1723217723370,422.84548923,9.309e-05,2]
[334562840,1723217732562,760.2567842,9.309e-05,2]
[334562841,1723217734119,316.58050495,9.309e-05,2]
[334562842,1723217736096,227.71036735,9.309e-05,2]
[334562843,1723217751080,227.71036735,9.309e-05,2]
[334562844,1723217751190,155.0,9.309e-05,2]
[334562845,1723217751371,290.09258595,9.309e-05,2]
[334562846,1723217752663,872.12298117,9.309e-05,2]
[334562847,1723217762540,760.2567842,9.309e-05,2]
[334562848,1723217762945,159.03851619,9.309e-05,2]
[334562849,1723217765086,7577.72096623,9.309e-05,2]
[334562850,1723217767913,-422.408079,0.0001038,2]
[334562851,1723217767937,-310.0,0.00010433,2]
[334562852,1723217767960,-240.0,0.00010533,2]
[334562853,1723217767983,-250.0,0.00010634,2]
[334562854,1723217768006,-3167.40379618,0.00010642,2]
[334562855,1723217768028,-300.0,0.00010642,2]
[334562856,1723217768052,-23900.0,0.00010643,2]
[334562857,1723217768075,-200.0,0.00010726,2]
[334562858,1723217768099,-1131.04616101,0.0001078,2]
[334562859,1723217768123,-15423.356,0.0001089,2]
[334562860,1723217768147,-418.83651901,0.000109,2]
[334562861,1723217768170,-167.89750998,0.000109,2]
[334562862,1723217768194,-205.06,0.00010942,2]
[334562863,1723217768216,-2000.0,0.00010959,2]
[334562864,1723217768240,-150.0,0.00010998,2]
[334562865,1723217768262,-241.45550201,0.00010999,2]
[334562866,1723217768284,-500.0,0.00010999,2]
[334562867,1723217768307,-500.0,0.00010999,2]
[334562868,1723217768329,-500.0,0.00010999,2]
[334562869,1723217768352,-500.0,0.00010999,2]
[334562870,1723217768376,-500.0,0.00010999,2]
[334562871,1723217768518,-500.0,0.00010999,2]
[334562872,1723217768588,-500.0,0.00010999,2]
[334562873,1723217768612,-500.0,0.00010999,2]
[334562874,1723217768636,-500.0,0.00010999,2]
[334562875,1723217768661,-500.0,0.00010999,2]
[334562876,1723217768684,-500.0,0.00010999,2]
[334562877,1723217768707,-500.0,0.00010999,2]
[334562878,1723217768731,-500.0,0.00010999,2]
[334562879,1723217768758,-500.0,0.00010999,2]
[334562880,1723217768781,-500.0,0.00010999,2]
[334562881,1723217768806,-500.0,0.00010999,2]
[334562882,1723217768831,-164.22288772,0.00010999,2]
[334562883,1723217768854,-8176.04654029,0.00010999,2]
[334562884,1723217768878,-500.0,0.00010999,2]
[334562885,1723217768901,-500.0,0.00010999,2]
[334562886,1723217768924,-500.0,0.00010999,2]
[334562887,1723217768947,-500.0,0.00010999,2]
[334562888,1723217768970,-500.0,0.00010999,2]
[334562889,1723217768992,-500.0,0.00010999,2]
[334562890,1723217769015,-500.0,0.00010999,2]
[334562891,1723217769037,-500.0,0.00010999,2]
[334562892,1723217769063,-500.0,0.00010999,2]
[334562893,1723217769086,-128.2670048,0.00010999,2]
[334562894,1723217769135,6177.02157522,9.309e-05,2]
[334562895,1723217770086,313.20428197,9.309e-05,2]
[334562896,1723217777905,159.03851619,9.309e-05,2]
[334562897,1723217788201,425.83516653,9.309e-05,2]
[334562898,1723217795692,411.87190944,9.309e-05,2]
[334562899,1723217796611,213.16597738,9.309e-05,2]
[334562900,1723217804567,973.34185184,9.309e-05,2]
[334562901,1723217814425,1268.69297036,9.309e-05,2]
[334562902,1723217816505,1223.55498284,9.309e-05,2]
[334562905,1723217846219,155.0,9.309e-05,2]
[334562906,1723217846669,914.81491858,9.309e-05,2]
[334562913,1723217857248,6078.05890625,9.309e-05,2]
[334562915,1723217867091,227.71036735,9.309e-05,2]
[334562917,1723217893560,734.90075752,9.309e-05,2]
[334562918,1723217900699,171.83359485,9.309e-05,2]
[334562919,1723217900919,159.03851619,9.309e-05,2]
[334562920,1723217901431,1268.69297036,9.309e-05,2]
[334562921,1723217902888,287.05265564,9.309e-05,2]
[334562922,1723217903577,973.34185184,9.309e-05,2]
[334562923,1723217908206,425.83516653,9.309e-05,2]
[334562924,1723217919204,425.83516653,9.309e-05,2]
[334562925,1723217933583,973.34185184,9.309e-05,2]
[334562926,1723217951196,160.07187628,9.309e-05,2]
[334562927,1723217965095,227.71036735,9.309e-05,2]
[334562928,1723217993912,159.03851619,9.309e-05,2]
[334562929,1723217996437,1270.19423833,9.309e-05,2]
[334562930,1723218031217,370.3656692,9.309e-05,2]
[334562931,1723218045596,973.34185184,9.309e-05,2]
[334562932,1723218061296,500.0,0.000249,120]
[334562933,1723218064094,227.71036735,9.309e-05,2]
[334562934,1723218084425,189.55319157,9.309e-05,2]
[334562937,1723218164097,283.08599292,9.309e-05,2]
[334562940,1723218173289,184.55,8.219e-05,2]
[334562942,1723218176603,227.71036735,9.309e-05,2]
[334562952,1723218287607,227.71036735,9.309e-05,2]
[334562979,1723218393626,227.71036735,9.309e-05,2]
[334563008,1723218478618,227.71036735,9.309e-05,2]
[334563014,1723218493625,227.71036735,9.309e-05,2]
[334563020,1723218552917,326.97808587,9.262e-05,2]
[334563026,1723218613677,227.71036735,9.262e-05,2]
[334563070,1723218633299,-18.79760874,9.897e-05,2]
[334563071,1723218633327,-231.20239126,9.897e-05,2]
[334563072,1723218633337,-512.0,9.924e-05,2]
[334563073,1723218633348,-300.0,9.969e-05,2]
[334563074,1723218633357,-300.0,9.969e-05,2]
[334563075,1723218633368,-396.79760874,9.97e-05,2]
[334563076,1723218633380,-1935.80047111,9.97e-05,2]
[334563077,1723218637370,175.32,8.219e-05,2]
[334563080,1723218638972,-296.3269443,9.97e-05,2]
[334563081,1723218638985,-17260.35497585,9.97e-05,2]
[334563082,1723218638996,-2398.84,0.0001,2]
[334563083,1723218639006,-194.46,0.00010042,2]
[334563084,1723218639017,-488.0,0.00010089,2]
[334563085,1723218639026,-240.0,0.00010119,2]
[334563086,1723218639038,-175.32,0.00010473,2]
[334563087,1723218639048,-159.88,0.00010778,2]
[334563088,1723218639057,-159.88,0.00010783,2]
[334563089,1723218639067,-159.88,0.00010788,2]
[334563090,1723218639077,-159.88,0.00010793,2]
[334563091,1723218639087,-159.88,0.00010798,2]
[334563092,1723218639097,-19251.99432534,0.000108,2]
[334563093,1723218639257,-1079.81047721,0.000108,2]
[334563115,1723218642639,-7000.55486072,0.000108,2]
[334563116,1723218642652,-1609.608,0.000108,2]
[334563117,1723218642718,-3539.01151222,0.000108,2]
[334563121,1723218642885,-12044.3701705,0.000108,2]
[334563122,1723218643008,-344.62556429,0.000108,2]
[334563124,1723218643241,-666.41,0.000108,2]
[334563125,1723218643253,-12463.61508972,0.000108,2]
[334563126,1723218643263,-159.88,0.00010802,2]
[334563127,1723218643272,-159.88,0.00010807,2]
[334563128,1723218643282,-854.2,0.00010807,2]
[334563129,1723218643292,-1136.01,0.00010807,2]
[334563130,1723218643307,-499.99,0.00010807,2]